bitfinex-derivatives/quotes_SOLF0:USTF0_20260227
["timestamp","ask_amount","ask_price","bid_price","bid_amount"]
[1772181901283,4.19505479,87.577,87.526,4.12244952]
[1772181901482,4.19505479,87.591,87.513,4.12244952]
[1772181901683,4.19505479,87.585,87.519,14.13369866]
[1772181901888,4.19505479,87.564,87.503,4.12244952]
[1772181902581,4.19505479,87.561,87.503,4.12244952]
[1772181903987,4.19505479,87.554,87.503,4.12244952]
[1772181905086,4.19505479,87.551,87.503,4.12244952]
[1772181906086,4.19505479,87.548,87.503,4.12244952]
[1772181906887,4.19505479,87.546,87.503,4.12244952]
[1772181909491,4.19505479,87.546,87.507,4.12244952]
[1772181912390,4.19505479,87.546,87.495,14.13369866]
[1772181912589,4.19505479,87.546,87.49,14.13369866]
[1772181912791,4.19505479,87.546,87.489,14.13369866]
[1772181912991,4.19505479,87.546,87.475,4.16011881]
[1772181912992,4.19505479,87.546,87.481,14.13369866]
[1772181913193,4.19505479,87.546,87.48,14.13369866]
[1772181913498,4.19505479,87.546,87.478,14.13369866]
[1772181913798,4.02333757,87.527,87.479,4.16011881]
[1772181916691,4.02333757,87.525,87.479,4.16011881]
[1772181917289,4.02333757,87.522,87.479,4.16011881]
[1772181918797,4.02333757,87.557,87.479,4.16011881]
[1772181918990,4.02333757,87.557,87.47,437.4673579]
[1772181918991,4.02333757,87.557,87.481,4.16011881]
[1772181919196,4.02333757,87.557,87.482,4.16011881]
[1772181919702,4.02333757,87.533,87.485,4.16011881]
[1772181920199,4.02333757,87.533,87.488,4.16011881]
[1772181921091,4.02333757,87.545,87.494,4.16011881]
[1772181921604,4.02333757,87.545,87.492,14.13369866]
[1772181921605,4.02333757,87.545,87.501,4.16011881]
[1772181923302,4.02333757,87.545,87.502,4.16011881]
[1772181923503,4.02333757,87.558,87.506,4.16011881]
[1772181923703,4.02333757,87.558,87.494,21.21249566]
[1772181923704,4.02333757,87.558,87.508,4.16011881]
[1772181924900,4.02333757,87.558,87.509,4.16011881]
[1772181926306,4.02333757,87.558,87.521,4.16011881]
[1772181927208,4.02333757,87.555,87.512,14.13369866]
[1772181927806,4.02333757,87.555,87.513,4.16011881]
[1772181928504,4.02333757,87.552,87.513,4.16011881]
[1772181929701,4.02333757,87.552,87.477,28.32163232]
[1772181929702,4.02333757,87.589,87.531,4.16011881]
[1772181930011,4.02333757,87.625,87.539,4.16011881]
[1772181930204,4.02333757,87.625,87.547,4.16011881]
[1772181930508,1.98715203,87.635,87.555,4.16011881]
[1772181930509,4.02333757,87.614,87.555,4.16011881]
[1772181930903,4.02333757,87.614,87.557,4.16011881]
[1772181931105,21.06676984,87.666,87.513,194.3103]
[1772181931106,4.02333757,87.631,87.561,4.16011881]
[1772181932403,4.02333757,87.628,87.561,4.16011881]
[1772181933809,4.02333757,87.613,87.561,4.16011881]
[1772181935003,4.02333757,87.613,87.54,10.2806]
[1772181935208,4.02333757,87.613,87.541,4.16011881]
[1772181936908,4.02333757,87.589,87.541,4.16011881]
[1772181938010,14.29843757,87.588,87.541,4.16011881]
[1772181939216,4.25523466,87.587,87.541,4.16011881]
[1772181941414,10.2737,87.599,87.541,4.16011881]
[1772181941720,10.2737,87.599,87.543,4.14615967]
[1772181942017,10.2742,87.596,87.543,4.14615967]
[1772181942208,4.23455539,87.595,87.543,4.14615967]
[1772181943919,4.23455539,87.592,87.543,4.14615967]
[1772181944721,10.2759,87.581,87.543,4.14615967]
[1772181947723,4.23455539,87.588,87.543,4.14615967]
[1772181948918,4.23455539,87.59,87.543,4.14615967]
[1772181949919,4.23455539,87.588,87.543,4.14615967]
[1772181950923,10.2757,87.583,87.543,4.14615967]
[1772181954128,4.23455539,87.58,87.543,4.14615967]
[1772181956626,10.2763,87.578,87.543,4.14615967]
[1772181956932,4.23455539,87.578,87.527,4.14615967]
[1772181957630,10.2756,87.583,87.535,4.14615967]
[1772181962838,4.23455539,87.59,87.538,4.14615967]
[1772181965037,20.5412,87.626,87.538,4.14615967]
[1772181965038,4.23455539,87.588,87.538,4.14615967]
[1772181965444,4.23455539,87.584,87.538,4.14615967]
[1772181965945,4.23455539,87.584,87.523,4.14615967]
[1772181966736,4.23455539,87.574,87.527,4.14615967]
[1772181967437,4.23455539,87.572,87.527,4.14615967]
[1772181968646,10.2774,87.568,87.527,4.14615967]
[1772181968946,4.23455539,87.567,87.516,4.14615967]
[1772181970043,10.2795,87.551,87.516,4.14615967]
[1772181970644,10.2805,87.542,87.503,4.21352881]
[1772181971248,10.2811,87.537,87.503,4.21352881]
[1772181971447,4.21192358,87.582,87.503,4.21352881]
[1772181971646,4.21192358,87.582,87.507,4.21352881]
[1772181971943,4.21192358,87.561,87.511,4.21352881]
[1772181973445,4.21192358,87.561,87.461,20.5798]
[1772181973446,4.21192358,87.57,87.525,4.21352881]
[1772181974548,4.21192358,87.568,87.525,4.21352881]
[1772181975938,4.21192358,87.563,87.525,4.21352881]
[1772181976342,4.21192358,87.563,87.52,14.13369866]
[1772181976745,4.21192358,87.561,87.521,14.13369866]
[1772181977247,4.21192358,87.561,87.517,4.21352881]
[1772181977845,4.21192358,87.589,87.531,0.84196646]
[1772181978041,4.21192358,87.589,87.483,20.5748]
[1772181978042,4.21192358,87.589,87.532,14.97566512]
[1772181978240,4.21192358,87.589,87.533,14.13369866]
[1772181978949,10.2769,87.573,87.533,14.13369866]
[1772181979149,4.21192358,87.572,87.534,14.13369866]
[1772181979347,4.21192358,87.572,87.533,14.13369866]
[1772181979546,4.21192358,87.572,87.534,14.13369866]
[1772181980143,4.21192358,87.572,87.532,0.84196646]
[1772181981046,4.21192358,87.567,87.53,14.13369866]
[1772181981444,4.21192358,87.567,87.526,14.13369866]
[1772181981644,4.21192358,87.567,87.52,0.76385416]
[1772181981945,4.21192358,87.564,87.52,0.76385416]
[1772181983251,4.21192358,87.564,87.521,0.78363287]
[1772181983850,4.21192358,87.564,87.522,0.78978576]
[1772181985944,10.278,87.563,87.522,0.78978576]
[1772181986652,4.21192358,87.564,87.522,0.78978576]
[1772181988048,4.21192358,87.564,87.523,11.14264873]
[1772181988354,4.21192358,87.564,87.524,0.86589702]
[1772181989049,4.21192358,87.564,87.525,11.14829702]
[1772181989554,4.21192358,87.563,87.525,0.86589702]
[1772181991150,10.61658865,87.605,87.516,24.41709866]
[1772181991151,4.21192358,87.561,87.516,14.13369866]
[1772181991351,4.21192358,87.561,87.512,14.13369866]
[1772181991654,4.21192358,87.561,87.511,14.13369866]
[1772181991853,4.21192358,87.553,87.511,14.13369866]
[1772181992454,4.21192358,87.55,87.511,14.13369866]
[1772181992857,4.21192358,87.55,87.51,14.13369866]
[1772181993956,4.21192358,87.548,87.51,14.13369866]
[1772181994156,4.21192358,87.548,87.511,14.13369866]
[1772181994354,4.21192358,87.548,87.51,14.13369866]
[1772181994554,4.21192358,87.548,87.511,14.13369866]
[1772181995052,4.21192358,87.548,87.51,14.13369866]
[1772181995254,4.21192358,87.548,87.511,14.13369866]
[1772181995558,4.21192358,87.548,87.511,10.284]
[1772181995856,4.21192358,87.593,87.512,0.78725557]
[1772181996861,10.2778,87.565,87.517,10.2833]
[1772181997060,4.21192358,87.564,87.518,0.84573496]
[1772181997752,4.21192358,87.581,87.526,0.85099243]
[1772181998959,4.15726239,87.571,87.527,0.8609339]
[1772182001566,4.44739636,87.567,87.522,14.13369866]
[1772182001768,4.44739636,87.567,87.516,0.90399434]
[1772182002968,4.44739636,87.56,87.516,0.90399434]
[1772182003868,10.2787,87.557,87.516,0.90399434]
[1772182004065,4.44739636,87.556,87.516,0.90399434]
[1772182004970,4.44739636,87.554,87.516,0.90399434]
[1772182005669,4.44739636,87.552,87.508,14.13369866]
[1772182006169,4.44739636,87.552,87.509,0.90718799]
[1772182006969,10.2801,87.545,87.509,15.04088665]
[1772182007169,10.2801,87.545,87.51,0.88394073]
[1772182010571,4.44739636,87.552,87.51,0.88394073]
[1772182010969,4.44739636,87.552,87.505,14.13369866]
[1772182011274,20.55,87.589,87.498,0.90214658]
[1772182011275,4.44739636,87.548,87.503,14.13369866]
[1772182011874,4.44739636,87.543,87.503,14.13369866]
[1772182012274,4.44739636,87.543,87.502,14.13369866]
[1772182012973,4.44739636,87.534,87.488,14.13369866]
[1772182013170,4.44739636,87.534,87.484,14.13369866]
[1772182013369,4.44739636,87.534,87.482,14.13369866]
[1772182013779,4.44739636,87.524,87.482,14.13369866]
[1772182014277,4.44739636,87.522,87.48,14.13369866]
[1772182015276,4.44739636,87.522,87.479,14.13369866]
[1772182015474,4.44739636,87.522,87.479,15.12885384]
[1772182015679,4.44739636,87.522,87.48,0.99515518]
[1772182017277,4.44739636,87.521,87.48,0.99515518]
[1772182018178,10.283,87.52,87.48,0.99515518]
[1772182020280,14.73069636,87.518,87.48,0.99515518]
[1772182020472,4.44739636,87.517,87.48,0.99515518]
[1772182021379,4.44739636,87.567,87.481,1.28470882]
[1772182021680,4.44739636,87.533,87.481,1.28470882]
[1772182022875,4.44739636,87.527,87.483,11.5759942]
[1772182023680,4.44739636,87.541,87.487,1.29662754]
[1772182023877,4.44739636,87.541,87.488,1.29662754]
[1772182024476,4.44739636,87.538,87.492,1.30056337]
[1772182024981,4.44739636,87.536,87.492,1.30056337]
[1772182025572,4.44739636,87.536,87.493,11.59443965]
[1772182025778,4.44739636,87.536,87.494,1.30833965]
[1772182027681,20.5496,87.59,87.465,281.13958276]
[1772182027682,4.44739636,87.551,87.496,1.30178625]
[1772182028882,4.44739636,87.542,87.496,1.30178625]
[1772182029379,4.44739636,87.542,87.497,10.2857]
[1772182029579,4.44739636,87.555,87.498,1.26835014]
[1772182030385,4.11649694,87.546,87.503,1.27474139]
[1772182030879,4.11649694,87.544,87.503,1.27474139]
[1772182031582,4.11649694,87.541,87.494,10.286]
[1772182031785,4.11649694,87.541,87.492,1.30049815]
[1772182032788,4.11649694,87.541,87.483,14.13369866]
[1772182032789,4.11649694,87.541,87.494,1.30408965]
[1772182035088,4.11649694,87.541,87.505,1.2983214]
[1772182035482,4.11649694,87.541,87.504,10.2849]
[1772182035483,4.11649694,87.555,87.509,1.30314009]
[1772182035688,4.11649694,87.555,87.496,14.13369866]
[1772182035689,4.11649694,87.594,87.513,1.30314009]
[1772182035895,4.11649694,87.594,87.479,160.0335]
[1772182035896,4.11649694,87.594,87.531,1.30314009]
[1772182036089,4.11649694,87.594,87.537,1.30314009]
[1772182036894,4.11649694,87.584,87.537,1.30314009]
[1772182037594,4.11649694,87.584,87.535,10.2812]
[1772182037595,4.11649694,87.58,87.535,10.2812]
[1772182040306,4.11649694,87.63,87.536,1.50255498]
[1772182040501,4.11649694,87.63,87.562,1.50569373]
[1772182041108,4.11649694,87.62,87.563,10.2779]
[1772182041311,4.11649694,87.62,87.564,1.55259706]
[1772182042200,4.11649694,87.62,87.566,11.83027271]
[1772182042908,4.11649694,87.618,87.566,1.55277271]
[1772182044008,4.11649694,87.614,87.566,1.55277271]
[1772182046804,4.11649694,87.611,87.541,1.79815511]
[1772182047403,4.11649694,87.644,87.544,1.76102156]
[1772182048712,4.11649694,87.616,87.554,1.76701445]
[1772182050110,4.11649694,87.616,87.559,1.65303366]
[1772182050705,4.11649694,87.612,87.559,1.65303366]
[1772182051705,4.11649694,87.602,87.53,1.63463713]
[1772182052505,4.11649694,87.594,87.533,1.63749383]
[1772182053909,4.11649694,87.587,87.533,1.63749383]
[1772182055109,4.11649694,87.584,87.533,1.63749383]
[1772182055512,10.2758,87.582,87.533,1.63749383]
[1772182055713,159.7225,87.65,87.48,28.29983433]
[1772182055714,4.11649694,87.655,87.55,1.62213096]
[1772182055916,4.11649694,87.655,87.591,1.62213096]
[1772182056509,4.11649694,87.645,87.591,1.62213096]
[1772182058015,4.11649694,87.645,87.593,1.7971053]
[1772182060423,4.11649694,87.645,87.597,1.84129178]
[1772182061922,4.11649694,87.645,87.599,10.2737]
[1772182063724,10.267,87.657,87.603,1.77819713]
[1772182064319,4.3691681,87.654,87.603,1.77819713]
[1772182065123,4.3691681,87.654,87.604,1.69964043]
[1772182066930,4.3691681,87.654,87.606,10.2729]
[1772182070227,10.2661,87.664,87.609,1.6075629]
[1772182070429,4.3691681,87.663,87.609,1.6075629]
[1772182071033,4.3691681,87.66,87.611,1.53205282]
[1772182071340,4.3691681,87.684,87.611,1.53205282]
[1772182072935,4.3691681,87.684,87.584,439.31652871]
[1772182072936,4.3691681,87.714,87.613,1.53636207]
[1772182073337,4.3691681,87.694,87.613,1.53636207]
[1772182075036,10.2651,87.673,87.623,1.4862106]
[1772182075234,4.3691681,87.681,87.623,1.4862106]
[1772182076941,4.3691681,87.681,87.633,1.51774186]
[1772182077837,10.2655,87.669,87.633,1.51774186]
[1772182078039,22.50596082,87.715,87.584,439.31652871]
[1772182078040,4.3691681,87.668,87.621,1.45406683]
[1772182078541,10.267,87.657,87.621,1.45406683]
[1772182079939,4.3691681,87.665,87.621,1.45406683]
[1772182080838,4.3691681,87.665,87.622,10.271]
[1772182081544,4.3691681,87.655,87.604,1.32065916]
[1772182082541,4.3691681,87.655,87.615,10.2718]
[1772182084139,4.3691681,87.655,87.623,10.2709]
[1772182084540,4.3691681,87.655,87.615,1.25431361]
[1772182086146,4.3691681,87.655,87.615,11.52611361]
[1772182088148,4.3691681,87.655,87.607,10.2727]
[1772182088947,4.3691681,87.653,87.598,10.2737]
[1772182089147,4.3691681,87.653,87.598,11.46451992]
[1772182089348,4.3691681,87.653,87.599,1.19081992]
[1772182089947,4.3691681,87.653,87.602,11.46830401]
[1772182090248,4.3691681,87.653,87.603,1.19492934]
[1772182092050,4.3691681,87.653,87.607,10.2727]
[1772182094052,4.25807978,87.651,87.603,1.19492934]
[1772182095448,4.25807978,87.648,87.603,1.19492934]
[1772182096154,4.25807978,87.645,87.603,1.19492934]
[1772182098050,20.5265,87.689,87.603,1.19492934]
[1772182098051,4.25807978,87.642,87.603,1.19492934]
[1772182098250,4.25807978,87.642,87.584,439.31652871]
[1772182098251,4.25807978,87.642,87.59,1.09354724]
[1772182099157,4.25807978,87.627,87.589,14.04161552]
[1772182099351,4.25807978,87.627,87.584,453.35814423]
[1772182100150,4.25807978,87.627,87.589,14.04161552]
[1772182101354,4.25807978,87.627,87.588,14.04161552]
[1772182105348,4.25807978,87.627,87.587,14.04161552]
[1772182106352,4.25807978,87.627,87.589,1.00752957]
[1772182106558,4.25807978,87.68,87.589,1.00752957]
[1772182107062,4.25807978,87.68,87.592,1.00752957]
[1772182107361,4.25807978,87.68,87.596,15.0304064]
[1772182107564,4.25807978,87.648,87.6,0.9902154]
[1772182107862,4.25807978,87.648,87.602,0.9902154]
[1772182108359,4.25807978,87.648,87.606,0.9915295]
[1772182108560,4.25807978,87.648,87.609,0.9915295]
[1772182110453,4.25807978,87.648,87.611,1.05844802]
[1772182111858,4.25807978,87.648,87.615,10.2717]
[1772182112163,20.5209,87.713,87.616,1.06137808]
[1772182112164,4.25807978,87.677,87.616,1.06137808]
[1772182112360,4.25807978,87.677,87.638,10.2691]
[1772182112565,4.25807978,87.7,87.634,1.06262932]
[1772182112760,4.25807978,87.7,87.637,1.06262932]
[1772182112961,4.25807978,87.7,87.638,1.06262932]
[1772182113162,4.25807978,87.7,87.654,10.2672]
[1772182113762,4.25807978,87.7,87.655,1.07353612]
[1772182114162,4.25807978,87.7,87.642,1.07352237]
[1772182114962,4.25807978,87.69,87.642,1.07352237]
[1772182117266,1.98502674,87.725,87.642,1.07352237]
[1772182117267,4.25807978,87.688,87.642,1.07352237]
[1772182117771,4.25807978,87.684,87.632,14.04161552]
[1772182117970,4.25807978,87.684,87.63,1.03042851]
[1772182118960,4.44987209,87.682,87.63,1.03042851]
[1772182119368,4.44987209,87.682,87.633,1.02196928]
[1772182120074,4.44987209,87.682,87.636,11.28928197]
[1772182120968,4.44987209,87.682,87.643,10.2685]
[1772182125372,4.44987209,87.682,87.643,11.3312774]
[1772182125572,4.44987209,87.682,87.651,10.2676]
[1772182125974,4.47742138,87.695,87.652,1.0627774]
[1772182126571,4.47742138,87.695,87.654,10.2673]
[1772182135377,4.47742138,87.695,87.652,1.0627774]
[1772182138078,4.47742138,87.693,87.652,1.0627774]
[1772182138881,10.263,87.691,87.652,1.0627774]
[1772182139083,14.74042138,87.691,87.652,1.0627774]
[1772182139285,4.47742138,87.69,87.624,1.08789479]
[1772182139481,4.47742138,87.69,87.611,4.3782028]
[1772182139880,4.47742138,87.658,87.612,14.6504028]
[1772182140081,4.47742138,87.658,87.613,4.3782028]
[1772182141883,4.47742138,87.655,87.613,4.3782028]
[1772182142483,10.2676,87.652,87.613,4.3782028]
[1772182142684,4.47742138,87.651,87.603,10.2731]
[1772182143386,4.47742138,87.651,87.603,14.6513028]
[1772182143587,4.47742138,87.649,87.606,10.2729]
[1772182143776,4.47742138,87.649,87.606,14.6511028]
[1772182143978,4.47742138,87.649,87.607,4.3782028]
[1772182144181,10.2681,87.647,87.607,4.3782028]
[1772182144985,14.74552138,87.647,87.607,4.3782028]
[1772182146387,4.47742138,87.646,87.607,4.3782028]
[1772182147685,4.47742138,87.646,87.608,10.2726]
[1772182147889,4.47742138,87.646,87.609,4.3782028]
[1772182151092,4.4862613,87.643,87.598,18.61985582]
[1772182151391,4.4862613,87.643,87.598,4.5782403]
[1772182151793,4.4862613,87.643,87.598,18.61985582]
[1772182151989,4.4862613,87.639,87.598,18.61985582]
[1772182154291,4.4862613,87.635,87.598,14.04161552]
[1772182154490,4.4862613,87.635,87.594,14.04161552]
[1772182154994,4.4862613,87.635,87.593,14.04161552]
[1772182155589,4.4862613,87.635,87.594,4.5782403]
[1772182155788,4.4862613,87.635,87.593,14.04161552]
[1772182155995,4.4862613,87.635,87.592,14.04161552]
[1772182156902,4.4862613,87.634,87.592,14.04161552]
[1772182157195,4.4862613,87.634,87.535,35.10788094]
[1772182157196,4.4862613,87.634,87.577,14.04161552]
[1772182157398,4.4862613,87.634,87.575,10.2765]
[1772182158398,4.4862613,87.634,87.575,14.8547403]
[1772182158899,4.4862613,87.622,87.575,14.8547403]
[1772182159699,4.4862613,87.622,87.576,4.5782403]
[1772182160895,4.4862613,87.62,87.576,4.5782403]
[1772182164300,4.4862613,87.615,87.56,14.04161552]
[1772182164502,4.4862613,87.615,87.556,4.5782403]
[1772182165998,4.4862613,87.6,87.556,4.5782403]
[1772182166902,4.4862613,87.597,87.556,4.5782403]
[1772182167096,4.4862613,87.597,87.542,4.5782403]
[1772182168307,4.4862613,87.583,87.542,4.5782403]
[1772182170007,4.4862613,87.583,87.544,4.5782403]
[1772182171316,20.5401,87.631,87.544,4.5782403]
[1772182171317,4.4862613,87.63,87.544,4.5782403]
[1772182172918,10.2747,87.591,87.546,4.5782403]
[1772182173815,4.4862613,87.585,87.505,14.04161552]
[1772182174015,4.4862613,87.585,87.499,4.5782403]
[1772182174221,4.4862613,87.539,87.499,4.5782403]
[1772182174421,4.4862613,87.539,87.473,4.5782403]
[1772182174821,10.2825,87.525,87.475,4.5782403]
[1772182175020,4.4862613,87.524,87.475,4.5782403]
[1772182175428,4.4862613,87.524,87.454,14.07712835]
[1772182175429,10.2846,87.507,87.455,4.5782403]
[1772182175622,4.4862613,87.512,87.455,4.5782403]
[1772182176620,4.4862613,87.54,87.455,4.5782403]
[1772182176826,4.4862613,87.54,87.459,4.5782403]
[1772182177328,4.4862613,87.54,87.473,4.5782403]
[1772182178020,10.2833,87.518,87.473,4.5782403]
[1772182179919,4.3700781,87.52,87.473,4.5782403]
[1772182181224,4.3700781,87.52,87.476,4.3678787]
[1772182181526,10.281,87.538,87.476,4.3678787]
[1772182181527,4.72707243,87.533,87.476,4.3678787]
[1772182181725,4.72707243,87.533,87.478,4.3678787]
[1772182182932,4.72707243,87.533,87.483,4.3678787]
[1772182183627,4.72707243,87.533,87.485,4.3678787]
[1772182191935,10.2817,87.531,87.485,4.3678787]
[1772182192133,4.72707243,87.53,87.485,4.3678787]
[1772182193439,4.72707243,87.53,87.486,4.3678787]
[1772182196440,4.72707243,87.53,87.488,4.3678787]
[1772182197945,4.72707243,87.53,87.491,14.6542787]
[1772182199144,4.72707243,87.53,87.492,4.3678787]
[1772182200235,4.72707243,87.53,87.439,4.3678787]
[1772182200638,4.72707243,87.53,87.48,4.3678787]
[1772182202036,4.72707243,87.53,87.49,4.3678787]
[1772182206156,4.72707243,87.541,87.492,4.3678787]
[1772182206348,4.72707243,87.564,87.492,4.3678787]
[1772182208054,10.279,87.555,87.514,14.6514787]
[1772182209250,4.72707243,87.562,87.514,14.6514787]
[1772182209453,4.72707243,87.562,87.515,4.3678787]
[1772182209653,4.72707243,87.562,87.516,10.2834]
[1772182209960,4.72707243,87.562,87.517,4.68098693]
[1772182210550,4.72707243,87.562,87.519,4.68098693]
[1772182210953,4.72707243,87.562,87.52,10.283]
[1772182211154,4.72707243,87.562,87.521,4.68098693]
[1772182213655,4.72707243,87.562,87.523,4.68098693]
[1772182213947,10.277,87.571,87.523,4.68098693]
[1772182215360,4.60915463,87.593,87.528,4.68098693]
[1772182215967,4.60915463,87.593,87.552,4.68098693]
[1772182216855,20.55223206,87.609,87.542,4.68098693]
[1772182216856,4.60915463,87.591,87.542,4.68098693]
[1772182217861,10.2752,87.587,87.542,4.68098693]
[1772182218162,14.88435463,87.587,87.542,4.68098693]
[1772182220364,4.60915463,87.586,87.542,4.68098693]
[1772182224858,10.2756,87.584,87.542,4.68098693]
[1772182225064,4.60915463,87.584,87.542,4.68098693]
[1772182231879,4.60915463,87.584,87.541,10.2804]
[1772182231880,4.60915463,87.564,87.517,4.68098693]
[1772182232980,4.60915463,87.564,87.528,4.68098693]
[1772182237978,4.60915463,87.564,87.527,10.2821]
[1772182237979,4.60915463,87.554,87.511,4.68098693]
[1772182238886,4.60915463,87.554,87.513,4.40745516]
[1772182239887,4.60915463,87.554,87.515,4.71988463]
[1772182241289,4.60915463,87.554,87.505,10.2847]
[1772182241485,4.60915463,87.554,87.503,4.71988463]
[1772182242083,4.45778467,87.537,87.491,279.72000542]
[1772182243788,4.45778467,87.534,87.491,279.72000542]
[1772182244089,4.45778467,87.534,87.491,4.71988463]
[1772182245291,4.45778467,87.531,87.483,14.07712835]
[1772182245590,4.45778467,87.531,87.483,4.71988463]
[1772182246588,4.45778467,87.531,87.485,4.71988463]
[1772182247989,4.45778467,87.531,87.491,4.71988463]
[1772182248685,10.281,87.538,87.491,4.71988463]
[1772182249386,14.73878467,87.538,87.491,4.71988463]
[1772182250095,14.73878467,87.538,87.494,4.71988463]
[1772182251497,4.45778467,87.537,87.494,4.71988463]
[1772182251890,4.45778467,87.535,87.494,4.71988463]
[1772182253491,4.45778467,87.532,87.486,14.07712835]
[1772182253691,4.45778467,87.532,87.484,10.2872]
[1772182253692,4.45778467,87.532,87.482,4.71988463]
[1772182254494,10.2817,87.531,87.483,10.2872]
[1772182254798,4.45778467,87.53,87.483,10.2872]
[1772182255391,4.45778467,87.53,87.483,15.00708463]
[1772182256696,4.45778467,87.528,87.483,4.71988463]
[1772182257895,4.45778467,87.522,87.484,10.2871]
[1772182258094,4.45778467,87.534,87.485,4.71988463]
[1772182259908,10.2804,87.543,87.495,4.71988463]
[1772182260199,4.45778467,87.542,87.495,4.71988463]
[1772182261501,4.45778467,87.54,87.478,4.71988463]
[1772182261897,10.2826,87.524,87.479,10.2878]
[1772182262102,4.45778467,87.523,87.48,4.71988463]
[1772182263897,4.45778467,87.519,87.468,4.71988463]
[1772182264406,4.45778467,87.519,87.415,34.27]
[1772182264407,4.45778467,87.493,87.445,10.2918]
[1772182264602,4.45778467,87.493,87.446,4.71988463]
[1772182265499,20.5605,87.544,87.446,4.71988463]
[1772182265500,4.45778467,87.491,87.446,4.71988463]
[1772182266199,10.2879,87.479,87.446,4.71988463]
[1772182266398,4.45778467,87.478,87.434,4.71988463]
[1772182266603,10.2882,87.476,87.434,4.71988463]
[1772182266803,4.45778467,87.475,87.422,4.71988463]
[1772182267906,10.2891,87.469,87.422,4.71988463]
[1772182268903,4.45778467,87.475,87.424,4.71988463]
[1772182269997,4.54496749,87.472,87.424,4.71988463]
[1772182270899,4.54496749,87.468,87.424,4.71988463]
[1772182271909,4.54496749,87.466,87.424,4.71988463]
[1772182274604,10.2882,87.476,87.424,4.71988463]
[1772182274804,14.83316749,87.476,87.424,4.71988463]
[1772182275008,4.54496749,87.475,87.424,4.71988463]
[1772182276013,4.54496749,87.475,87.427,4.46558429]
[1772182279607,10.287,87.486,87.439,4.46558429]
[1772182280008,14.83196749,87.486,87.439,4.46558429]
[1772182280317,4.54496749,87.485,87.439,4.46558429]
[1772182280515,10.2874,87.483,87.439,4.46558429]
[1772182281510,10.2874,87.483,87.439,14.75808429]
[1772182281718,10.2874,87.483,87.44,4.46558429]
[1772182282011,4.54496749,87.498,87.44,4.46558429]
[1772182283118,4.54496749,87.498,87.451,4.46558429]
[1772182283119,10.2857,87.497,87.451,4.46558429]
[1772182286119,10.2857,87.497,87.454,4.46558429]
[1772182288322,10.2865,87.49,87.454,4.46558429]
[1772182289220,4.54496749,87.497,87.454,4.46558429]
[1772182291121,10.2859,87.496,87.454,4.46558429]
[1772182291717,4.54496749,87.495,87.425,4.46558429]
[1772182292923,4.54496749,87.473,87.425,4.46558429]
[1772182293520,4.54496749,87.462,87.407,4.46558429]
[1772182294026,10.2915,87.448,87.407,4.46558429]
[1772182294226,4.54496749,87.447,87.407,4.46558429]
[1772182299634,4.55570694,87.466,87.409,4.41681302]
[1772182301032,4.55570694,87.466,87.419,4.34526634]
[1772182303034,10.2904,87.458,87.419,4.34526634]
[1772182303634,4.509423,87.465,87.419,4.34526634]
[1772182305932,4.509423,87.463,87.419,4.34526634]
[1772182307027,4.509423,87.46,87.419,4.34526634]
[1772182308030,4.509423,87.456,87.408,10.2961]
[1772182308228,4.509423,87.456,87.404,448.1526645]
[1772182309135,4.509423,87.445,87.378,11.60035855]
[1772182310338,10.2937,87.43,87.378,11.60035855]
[1772182311036,10.2949,87.42,87.378,11.60035855]
[1772182312737,10.2936,87.43,87.378,11.60035855]
[1772182313541,10.2924,87.44,87.378,11.60035855]
[1772182314340,10.2924,87.44,87.382,11.55895506]
[1772182316842,10.2924,87.44,87.386,11.55044091]
[1772182317046,311.81734848,87.464,87.386,11.55044091]
[1772182318039,10.2923,87.442,87.387,10.2986]
[1772182318238,10.2923,87.442,87.388,11.55994601]
[1772182321649,10.2932,87.433,87.388,11.55994601]
[1772182323358,10.2922,87.442,87.39,11.55887027]
[1772182323750,311.81734848,87.464,87.39,11.55887027]
[1772182324252,10.2919,87.445,87.393,11.55885934]
[1772182325361,10.2909,87.454,87.397,11.61933982]
[1772182325655,31.13516322,87.514,87.397,11.61933982]
[1772182326057,1.98993027,87.495,87.397,11.61933982]
[1772182326865,10.2883,87.476,87.423,10.2944]
[1772182327062,10.2883,87.476,87.424,11.61935566]
[1772182328766,10.2901,87.46,87.424,11.61935566]
[1772182330556,10.2891,87.468,87.424,11.61935566]
[1772182330958,1.98993027,87.495,87.424,11.61935566]
[1772182332462,10.2884,87.474,87.424,11.61935566]
[1772182336161,10.2884,87.474,87.426,10.2941]
[1772182336362,10.2884,87.474,87.427,11.63316442]
[1772182341766,10.2884,87.474,87.429,11.66191852]
[1772182343166,10.2884,87.474,87.431,11.6639237]
[1772182345168,1.98989044,87.505,87.436,11.66373862]
[1772182345169,10.2872,87.485,87.436,11.66373862]
[1772182346166,10.2872,87.485,87.44,11.66376552]
[1772182347971,10.2872,87.485,87.442,11.66668482]
[1772182350479,1.98964584,87.515,87.399,11.66653167]
[1772182350974,20.5679,87.513,87.416,11.66653167]